Cogmind - Beta 13 @@@ ROGUE MODE // 2024.03.09 @ 17:09:40 Player: Wakanaka Result: Destroyed by G-34 Mercenary with Small Laser Performance ------------- Evolutions (0) 0 Regions Visited (1) 200 Robots Destroyed (23) 115 Value Destroyed (464) 464 Prototype IDs (0) 0 Alien Tech Used (0) 0 Bonus (0) 0 TOTAL SCORE: 779 Bonus ------- None Cogmind --------- Core Integrity 0/250 Matter 215/300 Energy 60/250 System Corruption 0% Temperature Danger (485) Movement Walking (190) Ox1 Location -10/Materials Parts ------- > --- POWER (1) -------- Ion Engine > --- PROPULSION (2) --- Aluminum Leg Aluminum Leg > --- UTILITY (2) ------ Small Storage Unit Medium Storage Unit > --- WEAPON (2) ------- Particle Gun Particle Gun > --- INVENTORY (10) --- Aluminum Leg Aluminum Leg Wheel Compact Wheel Improved Heat Sink Structural Scanner Small Laser Welding Torch Peak State ------------ > --- POWER ------------ Light Nuclear Core > --- PROPULSION ------- Aluminum Leg Aluminum Leg > --- UTILITY ---------- Small Storage Unit Medium Storage Unit > --- WEAPON ----------- EM Pulse Gun Particle Gun > --- INVENTORY -------- Wheel Compact Wheel Improved Heat Sink Structural Scanner Small Laser Particle Gun Welding Torch [Rating: 11] Favorites ----------- Power Ion Engine Engine Ion Engine Power Core Light Nuclear Core Propulsion Aluminum Leg Leg Aluminum Leg Wheel Wheel Utility Small Storage Unit Storage Small Storage Unit Weapon Light Assault Rifle Energy Gun Particle Gun Ballistic Gun Light Assault Rifle Build | -11 -10 ------- Run | Yrd Mat Slots Evolved . | . . Power . | . . Propulsion . | . . Utility . | . . Weapon . | . . Parts Attached 22 | 9 13 Power 4 | 1 3 Engine 3 | 1 2 Core 1 | . 1 Reactor . | . . Propulsion 7 | 3 4 Treads . | . . Leg 4 | . 4 Wheel 3 | 3 . Hover . | . . Flight . | . . Utility 3 | 2 1 Device . | . . Storage 3 | 2 1 Processor . | . . Hackware . | . . Protection . | . . Artifact . | . . Weapon 8 | 3 5 Energy Gun 6 | 2 4 Energy Cannon . | . . Ballistic Gun 2 | 1 1 Ballistic Cannon . | . . Launcher . | . . Special Weapon . | . . Impact Weapon . | . . Slashing Weapon . | . . Piercing Weapon . | . . Special Melee Weapon . | . . Unidentified Prototypes . | . . Parts Lost 8 | . 8 Power 2 | . 2 Propulsion 2 | . 2 Utility . | . . Weapon 4 | . 4 Highest Loss Streak 5 | . 5 To Critical Strikes . | . . Average Slot Usage (%) 93 | . 93 Engine 10 | . 10 Core 3 | . 3 Leg 20 | . 20 Wheel 7 | . 7 Storage 24 | . 24 Energy Gun 17 | . 17 Ballistic Gun 8 | . 8 Naked Turns . | . . Heaviest Build 25 | 11 25 Greatest Support 26 | 26 20 Greatest Overweight (x) 1 | . 1 Average Overweight (x) . | . . Largest Inventory Capacity 10 | 8 10 Average Capacity 9 | 7 9 Most Carried 10 | 5 10 Average Carried 6 | 3 6 Final Capacity 10 | 8 10 Final Carried 8 | 5 8 Class Distribution -------------------- 100% | Mutant Dominant Class ---------------- Mutant | -10/Materials Resources | -11 -10 ----------- Run | Yrd Mat Matter Collected 524 | 235 289 Remotely . | . . Salvage Created 850 | 30 820 Parts 59 | 3 56 Haulers Intercepted 1 | . 1 Recyclers Shooed 5 | . 5 Parts Field Recycled . | . . Retrieved Matter . | . . Parts Self-Destructed . | . . Prevented . | . . Kills | -11 -10 ------- Run | Yrd Mat Combat Hostiles Destroyed 11 | . 11 Guns 11 | . 11 Classes Destroyed 6 | 1 5 Worker 3 | . 3 Builder 4 | . 4 Tunneler 2 | 1 1 Hauler 1 | . 1 Recycler 2 | . 2 Grunt 11 | . 11 Best Kill Streak 5 | 1 5 Combat Bots Only 3 | . 3 Max Kills in Single Turn 1 | 1 1 Gunslinging . | . . Exploded . | . . Melee . | . . Uniques/NPCs Destroyed . | . . Combat | -11 -10 -------- Run | Yrd Mat Hostile Shots Fired 89 | . 89 Missed 13 | . 13 Damage Taken 1048 | . 1048 Core 254 | . 254 Absorbed by Shields . | . . Core Remaining (%) 100 | 100 . Volleys Fired 121 | 7 114 Largest 2 | 2 2 Hottest 130 | 70 130 Shots Fired 201 | 11 190 Gun 201 | 11 190 Cannon . | . . Launcher . | . . Special . | . . Kinetic 74 | 4 70 Thermal 101 | 4 97 Explosive . | . . Electromagnetic 26 | 3 23 Robot Hit Streak 11 | 6 11 Robot Miss Streak 4 | 1 4 Penetration Max . | . . Secondary Targets . | . . Shots Hit Robots 130 | 8 122 Core Hits 43 | 2 41 Critical Kills . | . . Critical Parts Destroyed 1 | . 1 Critical Strikes 9 | . 9 Burn 6 | . 6 Destroy 1 | . 1 Corrupt 2 | . 2 Melee Attacks . | . . Impact . | . . Slashing . | . . Piercing . | . . Sneak Attacks . | . . Combat Hostiles . | . . Follow-up Attacks . | . . Damage Inflicted 1568 | 85 1483 Guns 1525 | 85 1440 Cannons . | . . Explosions 43 | . 43 Melee . | . . Ramming . | . . Kinetic 366 | 22 344 Thermal 919 | 36 883 Explosive . | . . Electromagnetic 283 | 27 256 Impact . | . . Slashing . | . . Piercing . | . . Highest Corruption . | . . Average Corruption . | . . Corruption Purged . | . . Corruption Blocked . | . . Overload Shots . | . . Overflow Damage . | . . Projectiles . | . . Explosions . | . . Melee . | . . Knockbacks . | . . Impact . | . . Kinetic . | . . Secondary . | . . Self-Inflicted Damage 40 | . 40 Shots 1 | . 1 Rammed . | . . Targets Rammed . | . . Kicked . | . . Crushed . | . . Highest Temperature 513 | 60 513 Average Temperature 144 | 32 148 Received Heat Transfer 570 | . 570 Effects 9 | . 9 Shutdowns 2 | . 2 Matter Decay 2 | . 2 Short Circuit 1 | . 1 Damage (minor) 1 | . 1 Damage (major) 3 | . 3 Siege Activations . | . . Robots Corrupted . | . . Combat Hostiles . | . . Parts Fried 1 | . 1 Impact Corruptions . | . . Robots Melted . | . . Combat Hostiles . | . . Parts Melted 2 | . 2 Heat Transferred 2706 | 111 2595 Parts Sabotaged . | . . Parts Stolen . | . . Parts Stripped . | . . Power Chain Reactions 1 | . 1 Alert | -11 -10 ------- Run | Yrd Mat Peak Influence 170 | 5 170 Initial 3 | . 3 Average 82 | 1 91 Maximum Alert Level . | . . Low Security (%) 100 | 100 100 Level 1 . | . . Level 2 . | . . Level 3 . | . . Level 4 . | . . Level 5 . | . . High Security . | . . Max Security . | . . Squads Dispatched 3 | . 3 Investigation 1 | . 1 Extermination . | . . Reinforcement 2 | . 2 Assault . | . . Garrison . | . . Intercept . | . . Searches Triggered . | . . Construction Impeded . | . . Haulers Reinforced . | . . Active Scanning Responses . | . . Cargo Convoy Interrupts . | . . Stealth | -11 -10 --------- Run | Yrd Mat Distress Signals 1 | . 1 Communications Jammed . | . . Distress Signals . | . . Times Spotted 26 | . 26 Peak Tracking Total 5 | . 5 Tactical Retreats . | . . Traps | -11 -10 ------- Run | Yrd Mat Traps Triggered 1 | . 1 Indirectly . | . . Trap Hack Attempts . | . . Triggered . | . . Disarmed . | . . Reprogrammed . | . . Reused . | . . Traps Extracted . | . . Installed . | . . Triggered . | . . Machines | -11 -10 ---------- Run | Yrd Mat Machines Disabled . | . . Max in Single Turn . | . . Machines Repaired . | . . Machines Dismantled . | . . Machines Sabotaged . | . . Overloaded Fab Kills . | . . Hacking | -11 -10 --------- Run | Yrd Mat Machines Accessed . | . . Terminals . | . . Fabricators . | . . Repair Stations . | . . Recycling Units . | . . Scanalyzers . | . . Garrison Access . | . . Total Hacks . | . . Successful . | . . Failed . | . . Catastrophic . | . . Database Lockouts . | . . Manual . | . . Terminals . | . . Fabricators . | . . Repair Stations . | . . Recycling Units . | . . Scanalyzers . | . . Garrison Access . | . . Terminal Hacks . | . . Fabricator Hacks . | . . Repair Station Hacks . | . . Recycling Unit Hacks . | . . Scanalyzer . | . . Garrison Access Hacks . | . . Unauthorized Hacks . | . . Terminals . | . . Fabricators . | . . Repair Stations . | . . Recycling Units . | . . Scanalyzers . | . . Garrison Access . | . . Data Cores Recovered . | . . Used . | . . Hacking Detections . | . . Full Trace Events . | . . Feedback Events . | . . Feedback Blocked . | . . Robot Schematics Acquired . | . . Robots Built . | . . Authchips . | . . Time . | . . Total Robot Build Rating . | . . Part Schematics Acquired . | . . Parts Built . | . . Authchips . | . . Time . | . . Total Part Build Rating . | . . Parts Repaired . | . . Time . | . . Parts Recycled . | . . Recycled Matter . | . . Retrieved Matter . | . . Retrieved Components . | . . Parts Scanalyzed . | . . Part Schematics Acquired . | . . Parts Damaged . | . . Bothacking | -11 -10 ------------ Run | Yrd Mat Used RIF Installer . | . . Robots Hacked . | . . Non-combat . | . . Combat . | . . Robot Hacks Applied . | . . Relay Couplers Released . | . . Fabnet Peak Effective % . | . . Robots Rewired . | . . Allies Hacked . | . . Hacks Repelled . | . . Allies | -11 -10 -------- Run | Yrd Mat Total Allies . | . . Largest Group . | . . Highest-Rated Group . | . . Highest-Rated Ally . | . . Total Orders . | . . Ally Attacks . | . . Total Damage . | . . Kills . | . . Allies Corrupted . | . . Allies Melted . | . . Intel | -11 -10 ------- Run | Yrd Mat Robot Analysis Total . | . . Derelict Logs Recovered . | . . Drone Launches . | . . Drone Recoveries . | . . Exploration | -11 -10 ------------- Run | Yrd Mat Turns Passed 711 | 73 638 Spaces Moved 262 | 43 219 Core 13 | 13 . Treads . | . . Legs 130 | . 130 Wheels 119 | 30 89 Hover . | . . Flight . | . . Fastest Speed 50 | 50 80 Average Speed 134 | 77 145 Slowest Speed 190 | 90 190 Overloaded Moves . | . . Propulsion Burnouts . | . . Robots Hopped . | . . Cave-ins Triggered . | . . Exploration Rate (%) 21 | 4 38 Regions Visited 1 Branch Regions . Pre-discovered Areas . | . . Known Exits Taken . | . . Unknown Exits Taken 1 | 1 . Scrap Searched . | . . Spaces Dug . | . . Terrain Destroyed 6 | . 6 Melee . | . . Projectile . | . . AOE 6 | . 6 Terrain Rammed . | . . Walls Destroyed . | . . Machines Disabled . | . . Actions | -11 -10 --------- Run | Yrd Mat Total 435 | 71 364 Wait 2 | . 2 Move 261 | 42 219 Hop . | . . Pick Up 25 | 12 13 Fast Attach 1 | . 1 Attach 16 | 7 9 Detach . | . . Swap 5 | 2 3 Drop 4 | 1 3 Fire 121 | 7 114 Melee . | . . Ram . | . . Kick . | . . Crush . | . . Escape Stasis . | . . Rewire . | . . Trap . | . . Miscellaneous . | . . Route ------- -11/Scrapyard -10/Materials (discovered 1 exit: [*Min]) History --------- Turn | Location | Event 36 | -11/Scrapyard | Discovered new exit (range 14) 74 | -11/Scrapyard | Entered Materials 275 | -10/Materials | Core integrity fell below 50% 303 | -10/Materials | Build established: Mutant 309 | -10/Materials | Lost 5 parts (1p2n2w) 375 | -10/Materials | Discovered new exit (range 13) 568 | -10/Materials | Core integrity fell below 20% 712 | -10/Materials | Destroyed by G-34 Mercenary with Small Laser Last Messages --------------- 00673_ K-01 Serf collects debris. 00675_ U-05 Engineer lays Concrete. 00682_ G-34 Mercenary destroyed. 00683_ U-05 Engineer builds a Door. 00695_ G-34 Mercenary misfires. 00696_ Overheating: Matter decay (-75). 00697_ Power failure, Lgt. Nuclear Core shutdown. 00697_ Destroyed Ion Engine. 00699_ G-34 Mercenary misfires. 00703_ Heat Sink fried. 00703_ G-34 Mercenary destroyed. 00704_ Overheating: Particle Gun damaged (-4). 00704_ EM Pulse Gun destroyed. 00708_ Lgt. Nuclear Core destroyed. 00710_ Overheating: Aluminum Leg damaged (-47). 00710_ Overheating: Particle Gun damaged (-4). 00710_ Overheating: Sml. Storage Unit damaged (-49). 00710_ K-01 Serf collects debris. Map ----- +----------------------------------------------------+ | | | | | | | ?????????????????????????????????????????? | | ?????????????????????????????????????????? | | ?????????????????????????????????????????? | | ?????????????????????????????????????????? | | ?????????????????????????????????????????? | | ?????????????????????????????????????????? | | ?????????????????????????????????????????? | | ?????????????????????????????????????????? | | ?????????????????????????????????????????? | | ?????????????????????????????????????????? | | ?????????????????????????????????????????? | | ?????????????????????????????????????????? | | ?????????????????????????????????????????? | | ?????????????????????????????????????????? | | ???????????????????###########???????????? | | ???????????????????# #???????????? | | ???????????????????# #???????????? | | ???????????????????# """ #???????????? | | ???????????????????# """""#????#??????? | | ???????????????????# """""#??? #??????? | | ???????????????????# """""#?? #??????? | | ?????????#####?????# """ #? #??????? | | ???####### #?????# =@!= ## ##?????? | | ???? + ########g### #?????? | | ?????# #??? + *=%=%% #?????? | | ?????# #????##### ===k +?????? | | ?????+ ## ??????# =! #?????? | | ??????# ##+###### ###### #?????? | | ??????# %########+###?????? | | ??????# |!=+ #???????? | | ??????# =%!# #???????? | | ??????# ##+####*%*# """ #???????? | | ??????#### # ?## *%#| """"" #???????? | | ########## # ##%%!# """""?????????? | | #""!"|""## # + %+ """""?????????? | | # "!"|" ## # ## %# """ ????????? | | # ## # ####%# #???????? | | # #??#=#? #???????? | | < # #??# #??#######???????? | | # #??# #????????????????? | | # ####### #??# #????????????????? | | ############??######??# #????????????????? | | # """ #??????????# #????????????????? | | # "T" #??????????# #????????????????? | | # " " #??????????# ????????????????? | | # """ #???????????##????????????????? | | # """ #?????????????????????????????? | +----------------------------------------------------+ Best States ------------- Heat Dissipation 25 Energy Generation 14 Energy Capacity 250 Matter Stores 300 Matter Capacity 300 Sight Range 16 Terrain Scan Density 10 Evasion (%) 44 Item Schematics ----------------- None Robot Schematics ------------------ None Fabricated ------------ Nothing Alien Tech Used ----------------- None Achievements -------------- None Challenges ------------ None Game ------ Seed MassMakeshiftProcessor Manual? 0 Play Time 00:10:31 Cumulative 49.9 hours Start 2024.03.09 @ 17:00:46 End 2024.03.09 @ 17:09:40 Sessions 1 Manual Loads 0 Difficulty Rogue Special Mode None Game No. 60 Rogue 60 Adventurer 0 Explorer 0 Win Type - Total 0 Types 0/0/0/0/0/0/0/0/0 Lore% 22 Gallery% 31 Achievement% 26 Wizard Run 0 Options --------- Layout 1 ASCII 0 Keyboard 0 Movement Mouse Keybinds 0 Fullscreen 1 Font 24/Smallcaps Map View 50x35 Zoom Use 0% Tactical HUD 1 Map Filters NONE Filters NONE Steam 1 RUN: a9b42448-3c6c-40fe-8530-663ddd0b0ad2